bitfinex/quotes_SOLUSD_20241216
["timestamp","ask_amount","ask_price","bid_price","bid_amount"]
[1734321381164,0.8488777,220.9,220.8,23.776884]
[1734321382390,20.0,220.88,220.8,23.776884]
[1734321382591,0.84901719,220.87,220.8,23.776884]
[1734321384299,20.0,220.88,220.8,23.776884]
[1734321384977,0.84900015,220.87,220.8,23.776884]
[1734321385766,0.84900015,220.87,220.74,32.0724439]
[1734321386183,0.84900015,220.87,220.78,20.0]
[1734321386486,0.84900015,220.87,220.79,23.776884]
[1734321387491,0.84900015,220.87,220.76,20.0]
[1734321387695,0.84900015,220.87,220.74,23.776884]
[1734321388083,6.6902,220.91,220.76,23.776884]
[1734321388084,20.84917269,220.88,220.76,23.776884]
[1734321388586,0.84917269,220.88,220.76,23.776884]
[1734321388796,0.84896265,220.9,220.8,23.776884]
[1734321389094,0.84896265,220.9,220.8,31.5085379]
[1734321390393,0.84896265,220.9,220.8,23.776884]
[1734321390596,0.84896265,220.9,220.79,23.776884]
[1734321390894,7.53911968,220.91,220.79,23.776884]
[1734321391775,6.6902,220.91,220.85,23.776884]
[1734321392567,6.6902,220.91,220.85,31.5085379]
[1734321392568,0.3125,220.91,220.85,31.5085379]
[1734321392773,0.3125,220.91,220.86,7.7316539]
[1734321392988,0.3125,220.91,220.88,23.776884]
[1734321393172,0.3125,220.91,220.88,31.5085379]
[1734321393774,0.3125,220.91,220.88,23.776884]
[1734321395205,0.3125,220.91,220.87,23.776884]
[1734321395382,0.3125,220.91,220.9,20.0]
[1734321395693,0.3125,220.91,220.9,55.84105583]
[1734321396871,0.3125,220.91,220.9,57.47115583]
[1734321397771,6.321,221.06,220.94,20.0]
[1734321397978,6.321,221.06,220.98,32.06417183]
[1734321398180,6.321,221.06,220.99,23.776884]
[1734321398494,6.321,221.06,220.97,12.06417183]
[1734321398795,6.321,221.06,220.98,23.776884]
[1734321400882,6.321,221.06,220.95,12.06417183]
[1734321400883,0.84434176,221.05,220.94,20.0]
[1734321401100,0.84434176,221.05,220.95,20.0]
[1734321401981,0.84434176,221.05,220.92,12.06417183]
[1734321402691,0.84434176,221.05,220.93,23.776884]
[1734321403903,0.84434176,221.05,220.9,2.45788244]
[1734321403904,12.15434176,221.05,220.9,2.45788244]
[1734321404130,12.15434176,221.05,220.9,0.82778244]
[1734321404701,12.15434176,221.05,220.89,12.06417183]
[1734321406202,12.15434176,221.05,220.9,23.776884]
[1734321409309,12.15434176,221.05,220.92,23.776884]
[1734321410401,0.84434176,221.05,220.95,12.06417183]
[1734321410590,0.84434176,221.05,220.96,23.776884]
[1734321411202,0.84434176,221.05,220.95,23.776884]
[1734321411783,0.84434176,221.05,220.94,23.776884]
[1734321412598,0.84434176,221.05,220.93,23.776884]
[1734321413514,0.84434176,221.05,220.93,35.84105583]
[1734321416099,0.84434176,221.05,220.93,31.49384597]
[1734321417897,0.84434176,221.05,220.93,23.776884]
[1734321418208,0.84434176,221.05,220.92,23.776884]
[1734321419601,7.7113,221.02,220.9,23.776884]
[1734321419909,0.84860046,221.01,220.84,1.6369]
[1734321420095,0.84860046,221.01,220.86,7.71696197]
[1734321420703,20.0,220.99,220.85,7.71696197]
[1734321421029,0.84871311,220.98,220.85,7.71696197]
[1734321421204,0.84871311,220.98,220.87,7.71696197]
[1734321421926,0.84871311,220.98,220.88,23.776884]
[1734321422614,0.84871311,220.98,220.87,23.776884]
[1734321422787,0.84871311,220.98,220.84,1.6369]
[1734321422788,0.84871311,220.98,220.85,23.776884]
[1734321422993,6.266,220.96,220.85,23.776884]
[1734321423194,0.84876096,220.95,220.85,23.776884]
[1734321425599,0.84876096,220.95,220.84,7.71696197]
[1734321425600,12.9714,220.94,220.79,1.5827]
[1734321425804,0.84891424,220.93,220.73,11.3257]
[1734321426011,6.266,220.92,220.78,7.71696197]
[1734321426331,0.84897929,220.91,220.78,7.71696197]
[1734321426816,0.84897929,220.91,220.79,7.71696197]
[1734321427196,0.84897929,220.91,220.79,23.776884]
[1734321428723,0.84897929,220.91,220.79,31.49384597]
[1734321429111,0.84897929,220.91,220.79,23.776884]
[1734321430135,0.84897929,220.91,220.78,23.776884]
[1734321431213,0.84897929,220.91,220.78,7.71696197]
[1734321431622,12.16607929,220.91,220.78,23.776884]
[1734321432802,12.16607929,220.91,220.79,7.71696197]
[1734321433003,12.16607929,220.91,220.78,31.49384597]
[1734321433223,12.16607929,220.91,220.78,23.776884]
[1734321436112,12.16607929,220.91,220.78,31.49384597]
[1734321436320,7.11501065,220.92,220.82,31.49384597]
[1734321437026,6.266,220.92,220.82,31.49384597]
[1734321437523,6.266,220.92,220.82,23.776884]
[1734321438525,0.84881694,220.91,220.82,23.776884]
[1734321439013,0.84881694,220.91,220.8,23.776884]
[1734321443039,0.84881694,220.91,220.79,7.71696197]
[1734321443040,0.84881694,220.91,220.79,23.776884]
[1734321444614,0.84881694,220.91,220.81,23.776884]
[1734321445727,6.266,220.92,220.81,23.776884]
[1734321446133,6.266,220.92,220.83,7.71696197]
[1734321446448,6.266,220.92,220.86,23.776884]
[1734321448137,6.266,220.92,220.86,31.49384597]
[1734321448521,6.266,220.92,220.86,23.776884]
[1734321449542,6.266,220.92,220.86,31.49384597]
[1734321449725,6.266,220.92,220.86,23.776884]
[1734321450629,6.266,220.92,220.85,31.49384597]
[1734321451437,6.266,220.92,220.85,23.776884]
[1734321451822,6.266,220.92,220.85,31.49384597]
[1734321452029,6.266,220.92,220.85,23.776884]
[1734321458367,6.266,220.92,220.87,23.776884]
[1734321458723,6.266,220.92,220.85,23.776884]
[1734321463553,0.84880881,220.91,220.85,23.776884]
[1734321463853,6.266,220.92,220.85,23.776884]
[1734321464746,7.11480896,220.92,220.85,23.776884]
[1734321465627,6.266,220.92,220.85,23.776884]
[1734321466053,0.84881131,220.91,220.85,23.776884]
[1734321466353,6.266,220.92,220.85,23.776884]
[1734321466552,0.84884026,220.91,220.85,23.776884]
[1734321467253,6.266,220.92,220.85,23.776884]
[1734321467953,6.266,220.92,220.83,23.776884]
[1734321468157,0.84881259,220.91,220.82,23.776884]
[1734321468656,0.84881259,220.91,220.84,20.0]
[1734321468853,0.84881259,220.91,220.85,23.776884]
[1734321469253,0.84881259,220.91,220.76,1.5648]
[1734321469455,12.16581259,220.91,220.76,1.5648]
[1734321470249,12.16581259,220.91,220.75,7.71696197]
[1734321471268,12.16581259,220.91,220.76,23.776884]
[1734321471446,12.16581259,220.91,220.76,7.71696197]
[1734321471647,12.16581259,220.91,220.77,23.776884]
[1734321473046,12.16581259,220.91,220.79,23.776884]
[1734321476776,7.11493654,220.92,220.83,23.776884]
[1734321476964,6.266,220.92,220.83,31.49384597]
[1734321477266,6.266,220.92,220.82,20.0]
[1734321477267,6.266,220.92,220.87,23.776884]
[1734321477459,6.266,220.92,220.85,23.776884]
[1734321480575,6.266,220.92,220.83,23.776884]
[1734321480781,0.84877656,220.91,220.78,7.71696197]
[1734321481777,0.84877656,220.91,220.76,7.71696197]
[1734321482270,0.84877656,220.91,220.77,7.71696197]
[1734321482473,0.84877656,220.91,220.79,7.71696197]
[1734321483649,0.84877656,220.91,220.8,23.776884]
[1734321483850,0.84877656,220.91,220.82,23.776884]
[1734321486576,6.266,220.92,220.86,23.776884]
[1734321489366,6.266,220.92,220.84,23.776884]
[1734321489567,6.266,220.92,220.84,31.49384597]
[1734321491151,6.266,220.92,220.86,23.776884]
[1734321491367,0.84874487,220.98,220.87,7.71696197]
[1734321491563,0.84874487,220.98,220.86,23.776884]
[1734321491564,6.2918,220.98,220.9,7.71696197]
[1734321492074,6.2918,220.98,220.93,20.0]
[1734321492876,0.84851988,220.97,220.88,23.776884]
[1734321493250,0.84851988,220.97,220.87,23.776884]
[1734321495490,0.84851988,220.97,220.86,23.776884]
[1734321496483,0.84851988,220.97,220.86,31.49384597]
[1734321500783,7.14046797,220.98,220.87,7.71696197]
[1734321500959,6.2918,220.98,220.88,23.776884]
[1734321501877,6.2918,220.98,220.91,23.776884]
[1734321503487,6.2918,220.98,220.91,31.49384597]
[1734321503861,0.84850909,221.05,220.92,7.71696197]
[1734321503862,6.3909,221.03,220.92,7.71696197]
[1734321504058,6.3909,221.03,220.94,23.776884]
[1734321504588,6.3909,221.03,220.93,23.776884]
[1734321504961,6.3909,221.03,220.96,20.0]
[1734321505161,6.3909,221.03,220.97,23.776884]
[1734321505361,6.3909,221.03,220.96,23.776884]
[1734321506182,6.3909,221.03,220.96,31.49384597]
[1734321506384,6.3909,221.03,220.97,23.776884]
[1734321507586,6.3909,221.03,220.96,23.776884]
[1734321510985,0.84827131,221.09,220.96,23.776884]
[1734321511192,6.5294,221.1,221.04,23.776884]
[1734321513496,0.5319199,221.14,221.08,23.776884]
[1734321514782,1.37982438,221.14,221.08,23.776884]
[1734321515377,0.5319199,221.14,221.08,23.776884]
[1734321515581,0.5319199,221.14,221.08,31.49384597]
[1734321516785,0.5319199,221.14,221.12,23.776884]
[1734321517193,0.5319199,221.14,221.11,23.776884]
[1734321517588,0.5319199,221.14,221.1,23.776884]
[1734321521575,0.5319199,221.14,221.12,23.776884]
[1734321521781,0.5319199,221.14,221.12,31.49384597]
[1734321522284,0.5319199,221.14,221.13,7.71696197]
[1734321522677,0.5319199,221.14,221.13,31.49384597]
[1734321523495,0.84769937,221.26,221.16,20.0]
[1734321523496,6.1853,221.26,221.16,20.0]
[1734321523676,6.1853,221.26,221.17,31.49384597]
[1734321524503,6.1853,221.26,221.17,23.776884]
[1734321524706,0.84750614,221.25,221.17,23.776884]
[1734321526799,0.84750614,221.25,221.1,7.71696197]
[1734321526997,0.84750614,221.25,221.09,7.71696197]
[1734321527211,0.84750614,221.25,221.1,7.71696197]
[1734321527899,20.0,221.23,221.08,7.71696197]
[1734321528126,7.6774,221.21,221.06,9.27086197]
[1734321528326,0.84785978,221.2,221.06,9.27086197]
[1734321529407,0.84785978,221.2,221.07,7.71696197]
[1734321529983,0.84785978,221.2,221.06,9.27086197]
[1734321530605,0.84785978,221.2,221.1,20.0]
[1734321531203,0.84785978,221.2,221.11,23.776884]
[1734321538425,11.3025,221.19,221.11,23.776884]
[1734321538626,0.84802125,221.18,221.11,23.776884]
[1734321543113,0.84795307,221.2,221.09,31.49384597]
[1734321544599,0.84795307,221.2,221.08,7.71696197]
[1734321545119,12.14995307,221.2,221.07,20.0]
[1734321545510,12.14995307,221.2,221.05,27.71696197]
[1734321545719,12.14995307,221.2,221.06,7.71696197]
[1734321546293,12.14995307,221.2,221.07,23.776884]
[1734321546800,12.14995307,221.2,221.06,23.776884]
[1734321553546,20.0,221.17,221.06,23.776884]
[1734321553715,0.84808663,221.16,221.06,23.776884]
[1734321554760,6.2009,221.15,221.06,23.776884]
[1734321554918,0.84808876,221.14,221.06,23.776884]
[1734321564454,2.45418876,221.14,221.06,23.776884]
[1734321567089,20.0,221.1,220.92,1.5782]
[1734321567257,0.84837445,221.09,220.93,7.71696197]
[1734321567449,0.84837445,221.09,220.96,7.71696197]
[1734321568349,0.84837445,221.09,220.99,20.0]
[1734321569170,8.2263,221.08,220.92,1.5782]
[1734321569353,0.84845297,221.07,220.92,1.5782]
[1734321569556,0.84845297,221.07,220.92,9.29516197]
[1734321569772,0.84845297,221.07,220.93,7.71696197]
[1734321570149,8.2263,221.08,220.97,7.71696197]
[1734321570431,8.2263,221.08,220.98,7.71696197]
[1734321570558,6.6571,221.08,221.0,7.71696197]
[1734321570749,6.6571,221.08,220.99,7.71696197]
[1734321571186,6.6571,221.08,221.02,20.0]
[1734321571355,6.6571,221.08,221.03,23.776884]
[1734321573071,6.6571,221.08,220.94,12.75151514]
[1734321573072,0.84820486,221.07,220.94,12.75151514]
[1734321573953,0.84820486,221.07,220.93,7.71696197]
[1734321574570,0.84820486,221.07,220.94,23.776884]
[1734321575273,0.84820486,221.07,220.98,23.776884]
[1734321576858,0.84820486,221.07,220.98,31.49384597]
[1734321577180,6.6571,221.08,221.0,23.776884]
[1734321578659,0.84822623,221.07,220.98,23.776884]
[1734321580687,0.84822567,221.07,220.98,23.776884]
[1734321581281,6.6571,221.08,220.98,23.776884]
[1734321581282,6.6571,221.08,220.98,31.49384597]
[1734321581780,6.6571,221.08,221.02,23.776884]
[1734321581990,0.84822888,221.07,221.02,23.776884]
[1734321583784,0.84822888,221.07,220.92,1.5782]
[1734321583785,1.6617,221.05,220.92,1.5782]
[1734321583988,0.84847585,221.04,220.92,1.5782]
[1734321585305,0.84847585,221.04,220.92,29.29516197]
[1734321585460,0.84847585,221.04,220.93,7.71696197]
[1734321585668,0.84847585,221.04,220.96,20.0]
[1734321585977,2.51013343,221.05,220.97,23.776884]
[1734321586177,1.6617,221.05,220.97,23.776884]
[1734321586875,0.84832652,221.04,220.97,23.776884]
[1734321589384,0.84832652,221.04,220.92,1.5782]
[1734321589385,0.84832652,221.04,220.94,20.0]
[1734321589588,0.84832652,221.04,220.93,20.0]
[1734321589892,0.84832652,221.04,220.95,20.0]
[1734321590795,0.84832652,221.04,220.96,23.776884]
[1734321593193,1.6617,221.05,220.96,31.49384597]
[1734321593389,0.84831173,221.07,221.0,23.776884]
[1734321593589,6.6571,221.08,221.0,23.776884]
[1734321593590,7.50533819,221.08,221.0,43.776884]
[1734321594598,6.6571,221.08,221.0,43.776884]
[1734321594981,0.84823222,221.07,221.0,43.776884]
[1734321601699,0.84823222,221.07,221.0,23.776884]
[1734321602384,7.50536141,221.08,221.0,23.776884]
[1734321602586,7.50536141,221.08,220.93,13.15290491]
[1734321602587,7.50536141,221.08,220.96,20.0]
[1734321602986,7.50536141,221.08,220.97,20.0]
[1734321603994,7.50536141,221.08,220.98,23.776884]
[1734321605516,6.6571,221.08,220.98,23.776884]
[1734321606409,0.84821777,221.07,220.98,23.776884]
[1734321607604,7.50539164,221.08,220.98,23.776884]
[1734321608311,6.6571,221.08,220.99,7.71696197]
[1734321608503,6.6571,221.08,221.0,23.776884]
[1734321609109,6.6571,221.08,220.99,23.776884]
[1734321610034,6.6571,221.08,220.98,23.776884]
[1734321610204,6.6571,221.08,221.02,23.776884]
[1734321611016,0.8482097,221.07,221.02,23.776884]
[1734321613114,6.6571,221.08,221.02,23.776884]
[1734321613693,0.84822657,221.07,221.02,23.776884]
[1734321614308,6.6571,221.08,221.02,23.776884]
[1734321614812,0.84816593,221.07,221.0,20.0]
[1734321615116,0.84816593,221.07,221.01,23.776884]
[1734321617019,0.84816593,221.07,220.92,6.68715317]
[1734321617321,0.84816593,221.07,220.92,14.40411514]
[1734321617615,20.0,221.05,220.92,14.40411514]
[1734321617924,0.84845734,221.04,220.92,14.40411514]
[1734321618123,20.84845734,221.04,220.92,1.6526]
[1734321618330,6.0374,221.02,220.88,7.71696197]
[1734321618542,0.84855979,221.01,220.88,7.71696197]
[1734321618828,20.0,220.99,220.89,7.71696197]
[1734321619046,20.0,220.99,220.9,7.71696197]
[1734321619403,0.84855979,221.01,220.9,7.71696197]
[1734321619620,6.0374,221.02,220.94,23.776884]
[1734321622128,0.84851865,221.08,220.96,23.776884]
[1734321622324,6.4195,221.07,220.96,31.49384597]
[1734321622531,0.84833542,221.06,220.96,23.776884]
[1734321623035,6.4195,221.07,220.96,31.49384597]
[1734321623337,6.4195,221.07,220.99,23.776884]
[1734321625129,0.84825284,221.06,220.97,23.776884]
[1734321625335,0.84825284,221.06,220.95,23.776884]
[1734321625639,0.84825284,221.06,220.92,7.71696197]
[1734321626222,0.84825284,221.06,220.9,6.8571198]
[1734321626223,20.0,221.04,220.9,6.8571198]
[1734321626437,20.8484944,221.03,220.9,5.03455317]
[1734321626635,20.8484944,221.03,220.91,7.71696197]
[1734321626849,20.0,221.03,220.92,7.71696197]
[1734321627153,20.0,221.03,220.9,16.35175317]
[1734321627154,20.0,221.04,220.93,7.71696197]
[1734321627310,0.8483589,221.03,220.9,16.35175317]
[1734321627736,0.8483589,221.03,220.91,23.776884]
[1734321627950,0.8483589,221.03,220.89,1.6088]
[1734321628121,0.8483589,221.03,220.89,9.32576197]
[1734321628950,0.8483589,221.03,220.9,23.776884]
[1734321630720,0.8483589,221.03,220.9,31.49384597]
[1734321632914,0.8483589,221.03,220.94,31.49384597]
[1734321633144,0.84839414,221.06,220.96,23.776884]
[1734321633334,7.26779121,221.07,220.97,7.71696197]
[1734321633653,6.4195,221.07,220.98,31.49384597]
[1734321633943,6.4195,221.07,220.98,23.776884]
[1734321634150,6.4195,221.07,221.0,23.776884]
[1734321634358,6.4195,221.07,221.0,7.71696197]
[1734321634530,6.4195,221.07,221.01,23.776884]
[1734321635864,6.4195,221.07,221.01,31.49384597]
[1734321636254,6.4195,221.07,221.01,23.776884]
[1734321636625,6.4195,221.07,221.01,31.49384597]
[1734321637526,6.4195,221.07,221.01,23.776884]
[1734321638030,6.4195,221.07,220.99,23.776884]
[1734321639064,6.4195,221.07,220.98,23.776884]
[1734321639240,6.4195,221.07,220.94,7.71696197]
[1734321639241,0.84825484,221.06,220.94,7.71696197]
[1734321639436,0.84825484,221.06,220.92,4.74385497]
[1734321639437,0.84825484,221.06,220.92,12.46081694]
[1734321639646,0.84825484,221.06,220.9,5.03455317]
[1734321639825,0.84825484,221.06,220.91,7.71696197]
[1734321640865,0.84825484,221.06,220.9,5.03455317]
[1734321640866,0.84825484,221.06,220.93,20.0]
[1734321641343,0.84825484,221.06,220.95,23.776884]
[1734321641764,0.84825484,221.06,220.94,23.776884]
[1734321653881,11.3096,221.05,220.94,23.776884]
[1734321654180,0.84843959,221.04,220.94,23.776884]
[1734321656584,6.4195,221.07,220.98,23.776884]
[1734321656748,0.84823799,221.06,220.98,23.776884]
[1734321656953,6.4195,221.07,220.98,23.776884]
[1734321660649,0.84825749,221.06,220.98,23.776884]
[1734321660854,6.4195,221.07,220.98,23.776884]
[1734321661186,6.4195,221.07,220.89,1.6088]
[1734321661187,17.7281,221.07,220.89,1.6088]
[1734321661349,17.7281,221.07,220.91,7.71696197]
[1734321661764,17.7281,221.07,220.9,7.71696197]
[1734321661980,17.7281,221.07,220.89,11.16748388]
[1734321662261,17.7281,221.07,220.89,9.32576197]
[1734321662673,17.7281,221.07,220.9,23.776884]
[1734321663188,17.7281,221.07,220.94,23.776884]
[1734321663482,1.6598,221.03,220.94,23.776884]
[1734321663687,6.1667,221.02,220.94,23.776884]
[1734321666920,6.1667,221.02,220.92,23.776884]
[1734321669107,6.1667,221.02,220.95,23.776884]
[1734321669942,6.1667,221.02,220.88,7.71696197]
[1734321670090,6.1667,221.02,220.9,7.71696197]
[1734321670296,6.1667,221.02,220.91,7.71696197]
[1734321670803,6.1667,221.02,220.9,7.71696197]
[1734321671208,6.1667,221.02,220.94,23.776884]
[1734321673904,6.1667,221.02,220.85,7.71696197]
[1734321674712,20.0,220.98,220.84,1.546]
[1734321674908,20.0,220.98,220.81,5.03455317]
[1734321674909,6.1981,220.97,220.81,7.716427]
[1734321675118,20.0,220.94,220.79,9.28716197]
[1734321675912,20.0,220.94,220.79,1.5702]
[1734321676234,1.508,220.96,220.83,7.71696197]
[1734321676408,1.508,220.96,220.85,7.71696197]
[1734321676603,1.508,220.96,220.8,11.3224]
[1734321676604,1.508,220.96,220.86,7.71696197]
[1734321676812,1.508,220.96,220.87,7.71696197]
[1734321677039,1.508,220.96,220.77,129.30951728]
[1734321677040,6.0787,220.94,220.72,1.5286]
[1734321677343,6.0787,220.94,220.73,7.71696197]
[1734321677699,6.0787,220.94,220.74,2.65889237]
[1734321677904,20.0,220.91,220.74,2.65889237]
[1734321678324,20.0,220.91,220.75,23.776884]
[1734321678521,20.0,220.91,220.73,23.776884]
[1734321678724,20.0,220.87,220.72,9.24556197]
[1734321678928,20.0,220.87,220.72,1.5286]
[1734321679920,20.0,220.87,220.74,20.0]
[1734321680126,20.0,220.87,220.73,20.0]
[1734321680510,31.3192,220.87,220.73,20.0]
[1734321680712,20.0,220.87,220.73,20.0]
[1734321680913,1.5209,220.88,220.8,20.0]
[1734321681508,6.649,220.9,220.81,20.0]
[1734321681713,6.649,220.9,220.82,23.776884]
[1734321684533,6.649,220.9,220.85,20.0]
[1734321684734,6.2451,220.95,220.89,20.0]
[1734321684928,6.2451,220.95,220.9,23.776884]
[1734321689828,6.2451,220.95,220.82,20.0]
[1734321690327,6.2451,220.95,220.84,20.0]
[1734321690749,6.2451,220.95,220.85,20.0]
[1734321691136,6.2451,220.95,220.86,23.776884]
[1734321693343,6.2451,220.95,220.9,23.776884]
[1734321696134,6.2451,220.95,220.78,13.12743725]
[1734321696340,6.2451,220.95,220.78,23.39686965]
[1734321696723,17.5599,220.95,220.77,3.46884802]
[1734321697026,17.5599,220.95,220.77,1.665]
[1734321697649,17.5599,220.95,220.77,4.35029135]
[1734321697833,17.5599,220.95,220.77,1.665]
[1734321698526,17.5599,220.95,220.78,23.776884]
[1734321699238,17.5599,220.95,220.81,20.0]
[1734321699550,17.5599,220.95,220.82,23.776884]
[1734321701130,6.2451,220.95,220.86,23.776884]
[1734321713762,6.2451,220.95,220.76,11.3241]
[1734321713937,6.2451,220.95,220.76,19.04890874]
[1734321714142,11.3152,220.94,220.76,14.04081585]
[1734321714863,20.0,220.91,220.76,14.04081585]
[1734321715251,6.3845,220.9,220.72,11.3261]
[1734321715562,11.3178,220.89,220.72,7.72480874]
[1734321716655,11.3178,220.89,220.76,20.0]
[1734321716962,11.3178,220.89,220.77,23.776884]
[1734321717261,6.3845,220.9,220.77,23.776884]
[1734321723653,6.3845,220.9,220.81,23.776884]
[1734321724472,6.3845,220.9,220.84,20.0]
[1734321724770,6.3845,220.9,220.85,23.776884]
[1734321727292,6.3845,220.9,220.76,12.0788276]
[1734321727459,6.3845,220.9,220.77,23.776884]
[1734321727771,0.84891127,220.89,220.75,35.8557116]
[1734321727953,0.84891127,220.89,220.75,12.0788276]
[1734321728167,0.84891127,220.89,220.74,11.3251]
[1734321728972,0.84891127,220.89,220.74,23.4039276]
[1734321729557,0.84891127,220.89,220.78,23.776884]
[1734321730585,11.3183,220.88,220.73,3.34834418]
[1734321730747,11.3183,220.88,220.72,16.9329445]
[1734321730748,20.0,220.85,220.69,12.0788276]
[1734321730952,20.0,220.83,220.68,12.0788276]
[1734321731158,20.0,220.83,220.67,3.44816047]
[1734321731159,0.84921907,220.82,220.67,13.7152276]
[1734321732601,0.84921907,220.82,220.68,23.776884]
[1734321732790,1.6054,220.79,220.66,23.776884]
[1734321733123,2.45473844,220.79,220.65,12.0788276]
[1734321734605,2.45473844,220.79,220.66,23.776884]
[1734321737396,2.45473844,220.79,220.65,23.776884]
[1734321737599,2.45473844,220.79,220.66,23.776884]
[1734321737969,2.45473844,220.79,220.65,23.776884]
[1734321738271,2.45473844,220.79,220.62,25.22135183]
[1734321738272,6.5442,220.78,220.67,23.776884]
[1734321738473,0.84946211,220.77,220.67,23.776884]
[1734321739388,6.4322,220.74,220.58,12.6107475]
[1734321739590,2.37430869,220.73,220.58,12.6107475]
[1734321740817,6.4322,220.7,220.58,0.5319199]
[1734321740989,0.84981102,220.69,220.58,0.5319199]
[1734321741607,20.0,220.67,220.58,0.5319199]
[1734321741918,0.84988479,220.66,220.58,0.5319199]
[1734321742231,0.84988479,220.69,220.58,0.5319199]
[1734321743162,0.84988479,220.69,220.58,24.3088039]
[1734321746313,6.4322,220.7,220.58,24.3088039]
[1734321746614,6.4322,220.7,220.62,23.776884]
[1734321747515,0.8496147,220.69,220.62,23.776884]
[1734321748321,0.8496147,220.69,220.58,0.5319199]
[1734321749198,20.0,220.67,220.58,0.5319199]
[1734321749402,0.84984988,220.66,220.58,0.5319199]
[1734321750123,20.0,220.67,220.58,0.5319199]
[1734321750519,0.84979517,220.66,220.58,0.5319199]
[1734321750718,1.5974,220.65,220.58,0.5319199]
[1734321750924,0.84995578,220.64,220.58,0.5319199]
[1734321751417,6.5003,220.63,220.58,0.5319199]
[1734321753618,6.5003,220.69,220.58,12.6107475]
[1734321753821,6.5003,220.69,220.59,32.0788276]
[1734321754118,6.5003,220.69,220.6,23.776884]
[1734321756629,6.5003,220.69,220.62,23.776884]
[1734321761122,0.84969182,220.68,220.58,0.5319199]
[1734321761823,6.5003,220.69,220.58,0.5319199]
[1734321762129,6.5003,220.69,220.6,32.0788276]
[1734321762344,6.5003,220.69,220.61,12.0788276]
[1734321762505,6.5003,220.69,220.62,23.776884]
[1734321763125,6.5003,220.69,220.61,23.776884]
[1734321765417,6.6296,220.74,220.66,20.0]
[1734321765645,6.6296,220.74,220.67,23.776884]
[1734321770015,0.84943794,220.79,220.68,12.0788276]
[1734321770220,6.5587,220.81,220.71,23.776884]
[1734321770415,6.5587,220.81,220.71,35.8557116]
[1734321771025,6.5587,220.81,220.71,23.776884]
[1734321772830,6.5587,220.81,220.71,12.0788276]
[1734321773037,6.5587,220.81,220.72,23.776884]
[1734321773351,6.5587,220.81,220.7,12.0788276]
[1734321773551,6.5587,220.81,220.71,23.776884]
[1734321773752,20.0,220.78,220.63,11.3308]
[1734321773965,0.84940532,220.77,220.63,12.0788276]
[1734321775038,0.84940532,220.77,220.66,20.0]
[1734321775242,0.84940532,220.77,220.67,23.776884]
[1734321775442,6.5587,220.76,220.67,23.776884]
[1734321775619,0.84945926,220.75,220.67,23.776884]
[1734321775820,0.84946357,220.75,220.6,12.0788276]
[1734321776020,0.84946357,220.75,220.59,12.9365]
[1734321776021,20.0,220.73,220.59,1.6037]
[1734321776233,0.84961525,220.72,220.59,1.6037]
[1734321776623,0.84961525,220.72,220.58,12.6107475]
[1734321777032,0.84961525,220.72,220.59,12.0788276]
[1734321777436,0.84961525,220.72,220.6,23.776884]
[1734321779319,0.84961525,220.72,220.59,23.776884]
[1734321779940,0.84961525,220.72,220.6,20.0]
[1734321781342,0.84961525,220.72,220.61,23.776884]
[1734321782319,20.84962641,220.73,220.61,23.776884]
[1734321782725,0.84962641,220.73,220.61,35.8557116]
[1734321783047,1.5353,220.74,220.66,23.776884]
[1734321783629,1.5353,220.74,220.66,35.8557116]
[1734321783822,6.5587,220.76,220.66,35.8557116]
[1734321784250,6.5587,220.76,220.66,23.776884]
[1734321784427,6.5587,220.76,220.66,35.8557116]
[1734321785227,6.5587,220.76,220.66,23.776884]
[1734321785432,6.5587,220.76,220.65,23.776884]
[1734321786952,0.84945001,220.75,220.63,23.776884]
[1734321787247,0.84945001,220.75,220.62,23.776884]
[1734321787451,0.84945001,220.75,220.62,35.8557116]
[1734321788627,6.5587,220.76,220.66,35.8557116]
[1734321791842,11.95777254,220.85,220.74,23.776884]
[1734321791843,6.5571,220.83,220.74,23.776884]
[1734321794549,6.5571,220.83,220.73,23.776884]